bitfinex/quotes_SOLUSD_20250212
["timestamp","ask_amount","ask_price","bid_price","bid_amount"]
[1739391182478,15.87185036,194.54,194.52,0.063]
[1739391182665,15.87185036,194.53,194.52,0.063]
[1739391183785,16.87185036,194.53,194.52,0.063]
[1739391184665,17.99724036,194.53,194.52,0.063]
[1739391185270,16.99734036,194.53,194.52,0.063]
[1739391185586,16.87185036,194.53,194.52,0.063]
[1739391186258,15.87185036,194.53,194.52,0.063]
[1739391186972,16.87185036,194.53,194.52,0.063]
[1739391187372,15.87185036,194.53,194.52,0.063]
[1739391188095,15.87185036,194.54,194.52,0.063]
[1739391188275,15.87185036,194.53,194.52,0.063]
[1739391188785,15.87185036,194.54,194.52,0.063]
[1739391189168,15.87185036,194.55,194.52,0.063]
[1739391190008,15.87185036,194.56,194.52,0.063]
[1739391190172,15.87185036,194.58,194.52,15.93485036]
[1739391190364,0.03,194.6,194.52,15.93485036]
[1739391190365,15.87185036,194.59,194.53,15.87185036]
[1739391191195,15.87185036,194.58,194.52,21.07555036]
[1739391191378,0.03,194.6,194.55,15.87185036]
[1739391192091,0.03,194.6,194.56,15.87185036]
[1739391192297,0.03,194.6,194.58,15.87185036]
[1739391192895,0.03,194.6,194.56,22.20835036]
[1739391193088,0.03,194.6,194.56,27.34795036]
[1739391194093,0.03,194.6,194.56,11.4761]
[1739391194282,0.03,194.6,194.56,27.34795036]
[1739391194483,0.03,194.6,194.56,5.1396]
[1739391194695,15.87185036,194.59,194.53,21.01235036]
[1739391194917,15.87185036,194.58,194.53,5.1405]
[1739391195285,15.87185036,194.59,194.53,21.01235036]
[1739391195484,15.90185036,194.6,194.54,15.87185036]
[1739391195787,0.03,194.6,194.55,15.87185036]
[1739391195983,0.03,194.6,194.56,15.87185036]
[1739391196202,0.03,194.6,194.57,15.87185036]
[1739391196503,0.03,194.6,194.58,15.87185036]
[1739391196903,0.03,194.6,194.59,21.01085036]
[1739391197616,0.03,194.6,194.59,35.75255094]
[1739391197979,0.0001,194.6,194.59,57.8135013]
[1739391198285,15.87185036,194.73,194.62,20.0]
[1739391198488,15.87185036,194.74,194.68,15.87185036]
[1739391198688,15.87185036,194.75,194.69,15.87185036]
[1739391198881,15.87185036,194.75,194.69,21.00815036]
[1739391199603,25.35959156,194.75,194.69,30.49589156]
[1739391199782,10.27,194.8,194.65,5.1374]
[1739391199982,10.27,194.8,194.71,25.35959156]
[1739391200183,10.27,194.8,194.65,5.1374]
[1739391200184,35.62959156,194.8,194.74,25.35959156]
[1739391200385,35.62959156,194.8,194.69,6.106]
[1739391200386,25.35959156,194.79,194.73,25.35959156]
[1739391200705,25.35959156,194.79,194.69,6.106]
[1739391200903,25.35959156,194.77,194.7,25.35959156]
[1739391201105,25.35959156,194.75,194.69,31.46559156]
[1739391201301,25.35959156,194.75,194.69,6.106]
[1739391201498,25.35959156,194.71,194.65,30.49699156]
[1739391201808,25.35959156,194.7,194.65,5.1374]
[1739391202409,25.35959156,194.71,194.65,30.49699156]
[1739391202588,25.35959156,194.72,194.65,30.49699156]
[1739391202784,25.35959156,194.7,194.65,5.1374]
[1739391202994,0.12549,194.76,194.65,5.1374]
[1739391202995,25.35959156,194.68,194.65,5.1374]
[1739391203194,25.35959156,194.7,194.65,5.1374]
[1739391204909,25.35959156,194.7,194.65,30.49699156]
[1739391205113,25.35959156,194.76,194.69,25.35959156]
[1739391205288,25.35959156,194.75,194.68,25.35959156]
[1739391205810,25.35959156,194.77,194.71,25.35959156]
[1739391205988,25.35959156,194.78,194.72,25.35959156]
[1739391207085,35.62959156,194.8,194.73,25.35959156]
[1739391207289,25.35959156,194.78,194.72,30.49499156]
[1739391207513,25.35959156,194.74,194.7,5.1359]
[1739391208213,25.35959156,194.75,194.7,5.1359]
[1739391208410,25.35959156,194.75,194.68,25.35959156]
[1739391208599,25.35959156,194.73,194.67,25.35959156]
[1739391209004,25.35959156,194.74,194.68,25.35959156]
[1739391209307,25.35959156,194.79,194.73,25.35959156]
[1739391209521,0.03,194.76,194.72,25.35959156]
[1739391209818,0.03,194.76,194.75,25.35959156]
[1739391210989,0.03,194.76,194.75,30.49429156]
[1739391211187,0.03,194.76,194.75,32.01899156]
[1739391214300,0.03,194.76,194.75,30.49429156]
[1739391214891,0.03,194.76,194.74,25.35959156]
[1739391215092,0.03,194.76,194.73,30.49459156]
[1739391215407,0.03,194.76,194.71,30.49519156]
[1739391215608,25.38959156,194.76,194.7,25.35959156]
[1739391215796,25.35959156,194.74,194.69,5.1361]
[1739391216300,25.35959156,194.74,194.68,25.35959156]
[1739391217033,0.03,194.76,194.71,25.35959156]
[1739391217224,0.03,194.76,194.74,25.35959156]
[1739391217404,0.03,194.76,194.73,25.35959156]
[1739391217603,0.03,194.76,194.72,25.35959156]
[1739391217909,25.38959156,194.76,194.69,25.35959156]
[1739391218395,25.38959156,194.76,194.69,30.49579156]
[1739391218903,25.35959156,194.74,194.68,25.35959156]
[1739391219306,25.35959156,194.75,194.68,25.35959156]
[1739391219512,25.35959156,194.74,194.68,25.35959156]
[1739391219717,25.35959156,194.74,194.65,5.1374]
[1739391219718,25.35959156,194.73,194.66,25.35959156]
[1739391219923,25.35959156,194.71,194.65,30.49699156]
[1739391220302,25.35959156,194.71,194.65,5.1374]
[1739391220506,25.35959156,194.69,194.63,30.49729156]
[1739391221013,25.35959156,194.7,194.64,25.35959156]
[1739391221317,25.35959156,194.71,194.65,25.35959156]
[1739391221921,25.35959156,194.73,194.66,25.35959156]
[1739391222111,25.35959156,194.73,194.67,25.35959156]
[1739391222521,25.35959156,194.72,194.65,30.49689156]
[1739391222825,25.35959156,194.71,194.65,25.35959156]
[1739391223005,25.35959156,194.72,194.65,25.35959156]
[1739391223207,25.35959156,194.72,194.66,25.35959156]
[1739391223507,25.35959156,194.71,194.64,25.35959156]
[1739391223911,25.35959156,194.71,194.65,25.35959156]
[1739391225407,25.35959156,194.71,194.64,25.35959156]
[1739391226103,25.35959156,194.72,194.65,25.35959156]
[1739391226428,25.35959156,194.74,194.67,25.35959156]
[1739391226726,25.35959156,194.73,194.66,25.35959156]
[1739391226899,0.03,194.76,194.7,25.35959156]
[1739391227107,0.03,194.76,194.71,25.35959156]
[1739391227423,0.03,194.76,194.7,25.35959156]
[1739391227616,25.38959156,194.76,194.69,25.35959156]
[1739391228611,0.03,194.76,194.71,25.35959156]
[1739391228812,0.03,194.76,194.65,0.25098]
[1739391228813,0.03,194.76,194.72,25.35959156]
[1739391229009,0.03,194.76,194.71,25.35959156]
[1739391229216,0.03,194.76,194.64,17.9813]
[1739391229217,25.35959156,194.73,194.66,25.35959156]
[1739391229417,25.35959156,194.73,194.67,25.35959156]
[1739391229622,25.35959156,194.75,194.69,5.1363]
[1739391230125,25.35959156,194.75,194.68,25.35959156]
[1739391230332,25.35959156,194.75,194.68,30.49619156]
[1739391230710,25.35959156,194.75,194.68,25.35959156]
[1739391230916,25.35959156,194.74,194.67,30.49639156]
[1739391231334,25.35959156,194.75,194.68,25.35959156]
[1739391231520,25.38959156,194.76,194.69,25.35959156]
[1739391231830,0.03,194.76,194.7,25.35959156]
[1739391232217,0.03,194.76,194.66,5.1371]
[1739391232218,0.03,194.76,194.71,25.35959156]
[1739391232420,25.38959156,194.76,194.69,25.35959156]
[1739391232732,0.03,194.76,194.73,25.35959156]
[1739391233833,0.03,194.76,194.74,15.84229898]
[1739391234647,15.87229898,194.76,194.7,5.1361]
[1739391234813,15.87229898,194.76,194.7,20.97839898]
[1739391235214,0.03,194.76,194.71,15.84229898]
[1739391235532,0.03,194.76,194.73,15.84229898]
[1739391235719,0.03,194.76,194.73,25.34919249]
[1739391236034,0.03,194.76,194.72,30.48469249]
[1739391236238,0.03,194.76,194.75,25.34919249]
[1739391236738,0.03,194.76,194.73,25.34919249]
[1739391237112,0.03,194.76,194.72,30.48469249]
[1739391237538,0.03,194.76,194.73,25.34919249]
[1739391238040,0.03,194.76,194.72,25.34919249]
[1739391238248,0.03,194.76,194.75,25.34919249]
[1739391239316,0.03,194.76,194.75,30.48389249]
[1739391241742,0.03,194.76,194.74,25.34919249]
[1739391241919,0.03,194.76,194.75,25.34919249]
[1739391243526,0.03,194.76,194.75,30.48389249]
[1739391246913,0.03,194.76,194.72,30.48469249]
[1739391247238,0.03,194.76,194.74,25.34919249]
[1739391247435,0.03,194.76,194.75,25.34919249]
[1739391247945,0.03,194.76,194.74,25.34919249]
[1739391249646,0.03,194.76,194.75,25.34919249]
[1739391251661,0.03,194.76,194.74,25.34919249]
[1739391251958,0.03,194.76,194.69,7.58516863]
[1739391251959,0.03,194.76,194.73,25.34919249]
[1739391252329,0.03,194.76,194.74,25.34919249]
[1739391254578,0.03,194.76,194.73,25.34919249]
[1739391255048,0.03,194.76,194.74,25.34919249]
[1739391255657,0.03,194.76,194.72,25.34919249]
[1739391255831,0.03,194.76,194.73,25.34919249]
[1739391256034,0.03,194.76,194.74,25.34919249]
[1739391256640,0.03,194.76,194.73,30.48439249]
[1739391257357,0.03,194.76,194.73,25.34919249]
[1739391257768,0.03,194.76,194.73,15.84320915]
[1739391258130,0.03,194.76,194.74,15.84320915]
[1739391259146,0.03,194.76,194.72,5.1354]
[1739391259147,0.03,194.76,194.75,15.84320915]
[1739391260165,0.03,194.76,194.75,20.97790915]
[1739391261382,10.27,194.8,194.78,21.651]
[1739391261665,1.5964,194.91,194.86,15.84320915]
[1739391261852,1.5964,194.91,194.85,15.84320915]
[1739391262369,15.84320915,194.9,194.84,15.84320915]
[1739391262561,15.84320915,194.88,194.82,15.84320915]
[1739391262870,15.96869915,194.9,194.83,15.84320915]
[1739391263061,0.12549,194.9,194.84,15.84320915]
[1739391263569,0.12549,194.9,194.85,15.84320915]
[1739391263966,1.5964,194.91,194.87,15.84320915]
[1739391264470,0.12549,194.9,194.87,15.84320915]
[1739391264675,15.96869915,194.88,194.8,15.84320915]
[1739391264871,15.84320915,194.86,194.8,15.84320915]
[1739391265170,15.84320915,194.84,194.78,15.84320915]
[1739391265363,15.84320915,194.84,194.77,20.97720915]
[1739391265873,15.84320915,194.83,194.77,20.97720915]
[1739391266177,15.84320915,194.84,194.77,20.97720915]
[1739391266478,15.84320915,194.84,194.78,15.84320915]
[1739391266876,15.84320915,194.87,194.8,15.84320915]
[1739391267280,0.12549,194.86,194.81,15.84320915]
[1739391267476,15.96869915,194.86,194.79,15.84320915]
[1739391267661,15.84320915,194.85,194.79,15.84320915]
[1739391268464,15.84320915,194.84,194.77,20.97740915]
[1739391268963,15.84320915,194.85,194.78,15.84320915]
[1739391269160,15.84320915,194.87,194.81,15.84320915]
[1739391269383,15.84320915,194.89,194.82,15.84320915]
[1739391269681,15.84320915,194.88,194.81,15.84320915]
[1739391270180,15.84320915,194.88,194.81,20.97620915]
[1739391270875,15.84320915,194.86,194.81,5.133]
[1739391271075,15.84320915,194.86,194.79,20.97680915]
[1739391271277,15.84320915,194.87,194.8,15.84320915]
[1739391271659,15.84320915,194.89,194.82,15.84320915]
[1739391271870,15.84320915,194.87,194.81,15.84320915]
[1739391272074,1.6264,194.91,194.81,15.84320915]
[1739391272075,15.84320915,194.88,194.81,15.84320915]
[1739391272470,15.84320915,194.87,194.81,15.84320915]
[1739391272798,15.84320915,194.86,194.8,5.1334]
[1739391274069,15.84320915,194.87,194.8,15.84320915]
[1739391274266,15.84320915,194.84,194.78,15.84320915]
[1739391274493,15.84320915,194.84,194.77,15.84320915]
[1739391274671,15.84320915,194.84,194.78,15.84320915]
[1739391275069,15.84320915,194.84,194.78,20.97690915]
[1739391275790,15.84320915,194.84,194.78,5.1337]
[1739391275965,15.84320915,194.83,194.76,15.84320915]
[1739391276173,15.84320915,194.8,194.74,20.97820915]
[1739391277604,15.84320915,194.81,194.75,15.84320915]
[1739391278191,15.84320915,194.81,194.75,20.97770915]
[1739391278401,15.84320915,194.81,194.75,5.1345]
[1739391279365,15.84320915,194.81,194.75,15.84320915]
[1739391280187,17.48000915,194.83,194.76,15.84320915]
[1739391280795,1.6368,194.83,194.75,20.97780915]
[1739391281000,15.84320915,194.82,194.75,20.97780915]
[1739391282194,15.84320915,194.81,194.75,20.97780915]
[1739391282370,15.84320915,194.82,194.75,20.97780915]
[1739391282565,17.48000915,194.83,194.76,15.84320915]
[1739391283185,17.48000915,194.83,194.71,5.1358]
[1739391283186,15.84320915,194.85,194.78,15.84320915]
[1739391283488,15.84320915,194.84,194.77,15.84320915]
[1739391283788,15.84320915,194.84,194.74,20.0]
[1739391283789,15.84320915,194.81,194.75,15.84320915]
[1739391283980,15.84320915,194.8,194.74,15.84320915]
[1739391284378,15.84320915,194.81,194.74,20.97800915]
[1739391284592,15.84320915,194.81,194.75,15.84320915]
[1739391284792,15.84320915,194.81,194.74,20.97800915]
[1739391285296,15.84320915,194.81,194.75,15.84320915]
[1739391285488,15.84320915,194.82,194.75,15.84320915]
[1739391285883,15.84320915,194.81,194.75,15.84320915]
[1739391286194,15.84320915,194.81,194.69,5.1363]
[1739391286195,15.84320915,194.8,194.73,15.84320915]
[1739391286489,15.84320915,194.79,194.72,15.84320915]
[1739391287076,15.84320915,194.79,194.72,20.97850915]
[1739391287395,15.84320915,194.78,194.72,15.84320915]
[1739391287698,15.84320915,194.78,194.71,15.84320915]
[1739391287877,15.84320915,194.77,194.71,15.84320915]
[1739391288394,15.84320915,194.75,194.68,20.97960915]
[1739391289994,15.84320915,194.76,194.69,15.84320915]
[1739391290489,15.84320915,194.76,194.7,15.84320915]
[1739391290692,15.84320915,194.78,194.71,15.84320915]
[1739391291475,15.84320915,194.77,194.7,15.84320915]
[1739391292008,15.84320915,194.78,194.71,20.97900915]
[1739391293391,15.84320915,194.78,194.72,15.84320915]
[1739391294791,15.84320915,194.78,194.73,5.1353]
[1739391295495,15.84320915,194.82,194.76,15.84320915]
[1739391295792,15.84320915,194.85,194.78,15.84320915]
[1739391295971,17.41370915,194.86,194.79,15.84320915]
[1739391296682,15.84320915,194.85,194.78,15.84320915]
[1739391296985,15.84320915,194.85,194.78,20.97690915]
[1739391297376,15.84320915,194.84,194.78,5.1337]
[1739391297575,15.84320915,194.83,194.78,5.1337]
[1739391297983,15.84320915,194.83,194.77,5.1342]
[1739391298191,15.84320915,194.82,194.77,5.1342]
[1739391298498,15.84320915,194.82,194.76,5.1344]
[1739391298675,15.84320915,194.82,194.76,20.97760915]
[1739391298877,15.84320915,194.83,194.76,20.97760915]
[1739391299197,15.84320915,194.81,194.75,20.97790915]
[1739391299506,15.84320915,194.81,194.74,15.84320915]
[1739391299704,15.84320915,194.8,194.73,22.53260915]
[1739391299880,15.84320915,194.78,194.71,27.62870915]
[1739391300197,15.96869915,194.77,194.71,15.84320915]
[1739391300498,15.84320915,194.76,194.69,20.97930915]
[1739391300802,15.84320915,194.77,194.7,15.84320915]
[1739391301100,15.84320915,194.77,194.68,1.6651]
[1739391301101,15.84320915,194.71,194.68,0.063]
[1739391301484,15.84320915,194.72,194.68,0.063]
[1739391301691,15.84320915,194.75,194.69,15.84320915]
[1739391302008,15.84320915,194.75,194.68,21.04270915]
[1739391302302,15.84320915,194.75,194.68,15.90620915]
[1739391302603,15.84320915,194.79,194.72,15.84320915]
[1739391302808,15.84320915,194.77,194.71,15.84320915]
[1739391303018,1.6553,194.83,194.69,15.84320915]
[1739391303019,15.84320915,194.75,194.69,15.84320915]
[1739391303182,15.84320915,194.75,194.68,21.04260915]
[1739391303377,15.84320915,194.73,194.68,5.1994]
[1739391304001,15.84320915,194.76,194.7,15.84320915]
[1739391304182,15.84320915,194.77,194.71,15.84320915]
[1739391304705,15.84320915,194.75,194.69,15.84320915]
[1739391304903,15.84320915,194.8,194.68,0.063]
[1739391304904,15.84320915,194.74,194.68,0.063]
[1739391305085,15.84320915,194.73,194.68,0.063]
[1739391305583,15.84320915,194.7,194.68,0.063]
[1739391306204,15.84320915,194.71,194.68,0.063]
[1739391306600,15.84320915,194.74,194.68,15.90620915]
[1739391306786,15.84320915,194.75,194.69,15.84320915]
[1739391307198,15.84320915,194.75,194.68,15.90620915]
[1739391307515,15.84320915,194.71,194.68,0.063]
[1739391307690,15.84320915,194.72,194.68,0.063]
[1739391308814,17.84310915,194.8,194.68,0.063]
[1739391308815,15.84320915,194.77,194.71,15.84320915]
[1739391309009,15.84320915,194.77,194.7,15.84320915]
[1739391309307,15.84320915,194.79,194.72,15.84320915]
[1739391310103,15.84320915,194.84,194.77,15.84320915]
[1739391310293,15.84320915,194.85,194.78,15.84320915]
[1739391310493,15.84320915,194.85,194.79,15.84320915]
[1739391310702,15.84320915,194.85,194.78,15.84320915]
[1739391311489,0.12549,194.78,194.69,20.97930915]
[1739391311686,15.84320915,194.72,194.68,0.063]
[1739391312596,15.84320915,194.71,194.68,0.063]
[1739391313718,15.84320915,194.72,194.68,0.063]
[1739391315297,15.84320915,194.75,194.68,15.90620915]
[1739391315916,15.84320915,194.71,194.68,0.063]
[1739391316405,15.84320915,194.7,194.68,0.063]
[1739391316805,15.84320915,194.71,194.68,0.063]
[1739391317618,15.84320915,194.72,194.68,0.063]
[1739391318918,0.12549,194.76,194.68,0.063]
[1739391318919,15.84320915,194.73,194.68,0.063]
[1739391319302,15.84320915,194.75,194.68,15.90620915]
[1739391320011,15.84320915,194.73,194.68,0.063]
[1739391320324,15.84320915,194.72,194.68,0.063]
[1739391321418,15.84320915,194.71,194.68,0.063]
[1739391321622,15.84320915,194.7,194.68,0.063]
[1739391321920,15.84320915,194.72,194.68,0.063]
[1739391323027,15.84320915,194.71,194.68,0.063]
[1739391323705,15.84320915,194.73,194.68,0.063]
[1739391323905,15.84320915,194.72,194.68,0.063]
[1739391324325,15.84320915,194.71,194.68,0.063]
[1739391325601,10.14759479,194.71,194.68,0.063]
[1739391326923,10.14759479,194.69,194.68,0.063]
[1739391327310,10.17654169,194.69,194.68,0.063]
[1739391329110,10.30203169,194.69,194.68,0.063]
[1739391329512,23.71388022,194.69,194.68,0.063]
[1739391329913,13.56628543,194.69,194.68,0.063]
[1739391330113,23.83937022,194.69,194.68,0.063]
[1739391330326,0.12549,194.65,194.6,0.063]
[1739391330633,10.14759479,194.61,194.6,0.063]
[1739391331526,20.0,194.66,194.6,0.063]
[1739391331527,10.14759479,194.63,194.6,0.063]
[1739391331729,15.86971729,194.63,194.6,0.063]
[1739391332033,15.86971729,194.62,194.6,0.063]
[1739391332622,15.86971729,194.61,194.6,0.063]
[1739391333132,15.99520729,194.61,194.6,0.063]
[1739391334232,45.27677311,194.61,194.6,0.063]
[1739391335338,45.40226311,194.61,194.6,0.063]
[1739391335512,20.12549,194.57,194.54,0.063]
[1739391335833,15.86971729,194.55,194.54,0.063]
[1739391336544,15.86971729,194.56,194.54,0.063]
[1739391336742,35.86971729,194.57,194.54,0.063]
[1739391337045,15.86971729,194.58,194.54,0.063]
[1739391337217,11.90524366,194.65,194.54,0.063]
[1739391337218,15.86971729,194.6,194.54,0.063]
[1739391337536,15.86971729,194.56,194.54,0.063]
[1739391337716,15.86971729,194.55,194.54,0.063]
[1739391339125,15.99520729,194.55,194.54,0.063]
[1739391342218,16.12069729,194.55,194.54,0.063]
[1739391342441,30.65793582,194.55,194.54,0.0001]
[1739391342622,20.25098,194.53,194.48,0.063]
[1739391342818,36.12069729,194.53,194.48,0.063]
[1739391344138,15.99520729,194.53,194.48,0.063]
[1739391344441,15.86971729,194.53,194.48,0.063]
[1739391347439,15.99520729,194.53,194.48,0.063]
[1739391347743,16.12069729,194.53,194.48,0.063]
[1739391350364,29.78352582,194.53,194.52,0.0001]
[1739391350529,29.78352582,194.53,194.48,0.063]
[1739391350530,20.0,194.5,194.48,0.063]
[1739391350723,16.12069729,194.49,194.48,0.063]
[1739391350929,30.78342582,194.49,194.48,0.0001]
[1739391351234,0.25098,194.46,194.4,0.063]
[1739391351428,31.86492458,194.41,194.4,0.063]
[1739391352631,31.86492458,194.41,194.4,0.0001]
[1739391352632,45.65324311,194.41,194.4,0.0001]
[1739391353550,20.12549,194.37,194.34,0.063]
[1739391353747,15.99520729,194.35,194.34,0.063]
[1739391354137,15.86971729,194.44,194.35,1.5573]
[1739391354341,1.6285,194.48,194.35,1.5573]
[1739391354526,20.0,194.47,194.35,6.7024]
[1739391354730,0.12549,194.46,194.35,6.7024]
[1739391354955,15.86971729,194.44,194.37,15.86971729]
[1739391355750,15.86971729,194.43,194.36,21.01471729]
[1739391357468,15.99520729,194.44,194.37,15.86971729]
[1739391358151,15.86971729,194.43,194.36,21.01471729]
[1739391358552,15.86971729,194.43,194.35,1.5573]
[1739391358553,15.86971729,194.39,194.35,1.5573]
[1739391359953,15.86971729,194.4,194.35,6.7026]
[1739391360560,15.86971729,194.41,194.35,6.7026]
[1739391360957,98.16971729,194.46,194.39,15.86971729]
[1739391361144,15.86971729,194.48,194.41,15.86971729]
[1739391361345,0.12549,194.47,194.41,15.86971729]
[1739391361741,15.86971729,194.49,194.42,15.86971729]
[1739391361962,0.12549,194.49,194.44,15.86971729]
[1739391362160,6.0346,194.54,194.44,15.86971729]
[1739391362161,15.86971729,194.51,194.44,15.86971729]
[1739391362362,15.86971729,194.5,194.43,15.86971729]
[1739391362666,15.86971729,194.47,194.42,6.1994]
[1739391363040,15.86971729,194.48,194.42,11.3427]
[1739391363240,0.12549,194.49,194.4,5.1437]
[1739391363241,15.86971729,194.46,194.4,5.1437]
[1739391363437,15.86971729,194.45,194.38,15.86971729]
[1739391363664,15.86971729,194.43,194.37,6.1994]
[1739391363968,0.12549,194.45,194.4,15.86971729]
[1739391364264,15.86971729,194.49,194.42,15.86971729]
[1739391364471,0.12549,194.47,194.42,15.86971729]
[1739391364664,0.12549,194.47,194.41,15.86971729]
[1739391365171,15.86971729,194.48,194.42,15.86971729]
[1739391365460,15.86971729,194.48,194.41,15.86971729]
[1739391365662,45.43375219,194.48,194.41,25.43375219]
[1739391365838,25.43375219,194.47,194.4,25.43375219]
[1739391366246,0.03,194.45,194.42,25.43375219]
[1739391366960,0.03,194.45,194.43,25.43375219]
[1739391367265,107.73375219,194.53,194.44,27.03095219]
[1739391367467,0.12549,194.52,194.47,25.43375219]
[1739391367647,0.03,194.54,194.48,25.43375219]
[1739391368159,25.58924219,194.54,194.47,25.43375219]
[1739391368462,25.55924219,194.52,194.45,25.43375219]
[1739391368663,0.12549,194.52,194.46,25.43375219]
[1739391369175,25.46375219,194.54,194.47,25.43375219]
[1739391370883,0.12549,194.53,194.47,25.43375219]
[1739391371063,25.55924219,194.53,194.45,25.43375219]
[1739391371755,25.46375219,194.54,194.47,25.43375219]
[1739391372366,0.15549,194.54,194.48,25.43375219]
[1739391372561,25.58924219,194.54,194.47,25.43375219]
[1739391372762,0.12549,194.52,194.46,25.43375219]
[1739391372963,25.55924219,194.52,194.45,25.43375219]
[1739391373169,25.55924219,194.52,194.44,47.03095219]
[1739391373961,25.55924219,194.52,194.45,25.43375219]
[1739391374794,0.03,194.54,194.48,25.43375219]
[1739391375083,0.15549,194.54,194.48,25.43375219]
[1739391375287,25.58924219,194.54,194.47,25.43375219]
[1739391376059,0.15549,194.54,194.48,25.43375219]
[1739391377067,25.58924219,194.54,194.47,25.43375219]
[1739391378356,0.03,194.53,194.49,25.43375219]
[1739391378765,25.46375219,194.53,194.46,30.57605219]
[1739391379163,0.03,194.53,194.48,25.43375219]
[1739391380490,0.03,194.53,194.52,25.43375219]
[1739391380857,0.03,194.53,194.52,26.99595219]
[1739391382226,0.03,194.53,194.52,32.13675219]
[1739391382980,0.03,194.53,194.52,52.39688072]
[1739391384565,0.03,194.54,194.53,13.66282853]
[1739391384883,0.03,194.54,194.53,45.3161567]
[1739391385079,0.03,194.54,194.53,44.23708072]
[1739391385573,0.03,194.54,194.53,30.57425219]
[1739391386193,25.43375219,194.63,194.53,30.57425219]
[1739391386392,0.12549,194.63,194.58,25.43375219]
[1739391386898,25.43375219,194.62,194.56,25.43375219]
[1739391387194,25.55924219,194.63,194.57,25.43375219]
[1739391387396,0.12549,194.63,194.57,25.43375219]
[1739391387610,15.99585616,194.63,194.57,15.87036616]
[1739391387784,35.87036616,194.64,194.57,15.87036616]
[1739391387984,15.99585616,194.62,194.55,15.87036616]
[1739391388800,0.12549,194.62,194.56,15.87036616]
[1739391388976,15.99585616,194.62,194.55,15.87036616]
[1739391389976,15.87036616,194.57,194.51,15.87036616]
[1739391390288,15.87036616,194.54,194.48,15.87036616]
[1739391390791,15.87036616,194.54,194.47,15.87036616]
[1739391390996,15.87036616,194.54,194.48,15.87036616]
[1739391391300,15.87036616,194.55,194.48,15.87036616]
[1739391391977,15.87036616,194.56,194.49,15.87036616]
[1739391392398,15.87036616,194.56,194.5,15.87036616]
[1739391392596,82.3,194.6,194.52,15.87036616]
[1739391392597,15.87036616,194.58,194.52,15.87036616]
[1739391392902,0.12549,194.58,194.52,15.87036616]
[1739391393280,15.87036616,194.57,194.51,15.87036616]
[1739391393500,15.87036616,194.57,194.5,21.01166616]
[1739391394395,15.87036616,194.57,194.51,15.87036616]
[1739391394987,15.87036616,194.57,194.5,15.87036616]
[1739391395183,15.87036616,194.55,194.49,15.87036616]
[1739391395514,15.87036616,194.55,194.48,15.87036616]
[1739391395808,15.87036616,194.51,194.45,5.2054]
[1739391395994,15.87036616,194.51,194.45,0.063]
[1739391396391,15.87036616,194.5,194.45,0.063]
[1739391397006,1.66509,194.54,194.45,0.063]
[1739391397007,15.87036616,194.51,194.45,0.063]
[1739391397227,15.87036616,194.51,194.45,15.93336616]
[1739391397707,15.87036616,194.48,194.45,0.063]
[1739391398211,0.12549,194.51,194.45,0.063]
[1739391398212,15.87036616,194.46,194.45,0.063]
[1739391398393,15.99585616,194.46,194.45,0.063]
[1739391398712,17.59005616,194.46,194.45,0.063]
[1739391404402,0.12549,194.46,194.45,0.063]
[1739391404602,15.87036616,194.49,194.45,0.063]
[1739391404802,15.87036616,194.5,194.45,0.063]
[1739391405003,0.12549,194.49,194.45,0.063]
[1739391405204,20.12549,194.49,194.45,0.063]
[1739391405514,35.99585616,194.49,194.45,0.063]
[1739391405714,15.87036616,194.48,194.45,0.063]
[1739391406022,0.12549,194.47,194.45,0.063]
[1739391406325,15.99585616,194.47,194.45,0.063]
[1739391407627,15.87036616,194.5,194.45,0.063]
[1739391407811,17.39036616,194.51,194.45,0.063]
[1739391408503,15.99585616,194.5,194.45,0.063]
[1739391408705,15.87036616,194.48,194.45,0.063]
[1739391409707,1.52,194.51,194.45,0.063]
[1739391409708,15.87036616,194.5,194.45,0.063]
[1739391409912,15.87036616,194.51,194.45,15.93336616]
[1739391410106,0.12549,194.5,194.45,15.93336616]
[1739391410506,15.99585616,194.5,194.45,0.063]
[1739391411115,15.87036616,194.49,194.45,0.063]
[1739391411729,15.87036616,194.48,194.45,0.063]
[1739391412328,15.87036616,194.47,194.45,0.063]
[1739391415124,0.12549,194.46,194.45,0.063]